fUSD/lending_fUSD_20240519
["ID","MTS","AMOUNT","RATE_DAILY","PERIOD"]
[327519079,1716147049000,-500.0,0.00043835,30]
[327519080,1716147049010,-162.5626863,0.00043999,30]
[327519081,1716147049023,-337.4373137,0.00043999,30]
[327519082,1716147049032,-500.0,0.00043999,30]
[327519083,1716147049041,-508.14681681,0.00044696,30]
[327519084,1716147049051,-500.0,0.00044696,30]
[327519085,1716147049061,-181.56,0.00044788,10]
[327519086,1716147049071,-384.80972136,0.000449,2]
[327519087,1716147049082,-828.13695673,0.00044967,4]
[327519088,1716147049091,-23910711.9854043,0.00045,5]
[327519089,1716147049100,-200.7121756,0.00045,120]
[327519090,1716147049110,-409.9579361,0.00045,30]
[327519091,1716147049119,-326.0,0.00045,30]
[327519092,1716147049128,-215.79747019,0.00045,30]
[327519093,1716147049137,-2500.0,0.00045,120]
[327519094,1716147049147,-176143.41132513,0.00045,120]
[327519095,1716147049156,-5500974.91581048,0.00045,5]
[327519097,1716147049168,-1595.25934319,0.00045,5]
[327519099,1716147049245,-310.37690747,0.00045,5]
[327519100,1716147049257,-155484.72093232,0.00045,5]
[327519101,1716147049270,-631.55097061,0.00045,5]
[327519102,1716147049283,-3778.64604931,0.00045,5]
[327519103,1716147082135,2604.3520118,0.00013694,2]
[327519104,1716147106127,2393.72777982,0.00013694,2]
[327519105,1716147219269,17236.30403655,0.0001258,2]
[327519106,1716147224659,9281.23168346,0.00013,2]
[327519107,1716147224716,310.0,0.00013,2]
[327519109,1716147303201,193.0,0.00019716,15]
[327519110,1716147303671,193.0,0.00019706,15]
[327519111,1716147304815,193.0,0.00019696,15]
[327519112,1716147304867,150.5,0.00019716,15]
[327519113,1716147305362,150.5,0.00019706,15]
[327519114,1716147305415,193.0,0.00019716,15]
[327519115,1716147305825,150.5,0.00019696,15]
[327519116,1716147305952,193.0,0.00019706,15]
[327519117,1716147306310,150.5,0.00019716,15]
[327519118,1716147306442,193.0,0.00019696,15]
[327519119,1716147306783,150.5,0.00019706,15]
[327519120,1716147307094,193.0,0.00019716,15]
[327519121,1716147307269,150.5,0.00019696,15]
[327519122,1716147307666,193.0,0.00019706,15]
[327519123,1716147308124,193.0,0.00019716,15]
[327519124,1716147308601,150.5,0.00019716,15]
[327519125,1716147308653,195.0,0.00019706,15]
[327519126,1716147309001,150.5,0.00019706,15]
[327519127,1716147309517,152.0,0.00019716,15]
[327519132,1716147439142,181.56,0.00025534,120]
[327519134,1716147617783,400.0,0.00012,4]
[327519135,1716147620090,800.0,0.000121,4]
[327519136,1716147622219,1300.0,0.000122,4]
[327519137,1716147624350,1700.0,0.000123,4]
[327519138,1716147626457,2200.0,0.000124,4]
[327519139,1716147628572,400.0,0.000125,4]
[327519140,1716147727917,156.62,0.00024329,30]
[327519142,1716148048532,900.0,0.00012,4]
[327519143,1716148050673,1800.0,0.000121,4]
[327519144,1716148052776,2700.0,0.000122,4]
[327519145,1716148054904,3700.0,0.000123,4]
[327519146,1716148057028,4600.0,0.000124,4]
[327519149,1716148059136,900.0,0.000125,4]
[327519151,1716148186604,156.62,0.00024329,30]
[327519167,1716148232812,-410.2060182,0.00012557,2]
[327519168,1716148232822,-255.27088013,0.00012558,2]
[327519169,1716148232834,-808.58890904,0.00012558,2]
[327519170,1716148232843,-6925.93419263,0.00012579,2]
[327519171,1716148232855,-268.59930771,0.00012579,2]
[327519172,1716148232867,-3742.40082765,0.00012579,2]
[327519173,1716148232876,-1331.84378066,0.0001258,2]
[327519174,1716148232886,-900.0,0.000126,4]
[327519175,1716148232895,-900.0,0.000127,4]
[327519176,1716148232904,-900.0,0.000128,4]
[327519177,1716148232924,-231.91938552,0.000129,2]
[327519178,1716148232934,-1000.0,0.000129,2]
[327519179,1716148232944,-1364.0,0.000129,4]
[327519180,1716148232954,-2500.0,0.000129,2]
[327519181,1716148232964,-3644.44286464,0.000129,2]
[327519182,1716148232977,-337.73812368,0.000129,2]
[327519183,1716148232986,-517.12259692,0.000129,2]
[327519184,1716148233000,-713.45,0.000129,2]
[327519185,1716148233012,-2023.95885393,0.000129,2]
[327519186,1716148233024,-3592.15713194,0.000129,2]
[327519187,1716148233038,-6795.73409338,0.000129,2]
[327519188,1716148233048,-172.42754453,0.000129,2]
[327519189,1716148233057,-976.67264051,0.00012984,2]
[327519190,1716148233069,-404.05073326,0.00012984,2]
[327519191,1716148233079,-303.0,0.00012984,2]
[327519192,1716148233088,-193.79,0.00012984,2]
[327519193,1716148233098,-1437.37,0.00012984,2]
[327519194,1716148233108,-1993.85,0.00012984,2]
[327519195,1716148233118,-6335.44291136,0.00012984,2]
[327519196,1716148233130,-458.66396705,0.00012984,2]
[327519197,1716148233142,-358.87312159,0.00012984,2]
[327519198,1716148233152,-436.44,0.00012984,2]
[327519199,1716148233162,-261.46997471,0.00012986,2]
[327519201,1716148233174,-46.08002529,0.00012986,2]
[327519203,1716148233183,-189.7938559,0.0001299,2]
[327519205,1716148233193,-152.03,0.0001299,2]
[327519207,1716148233203,-152.03,0.0001299,2]
[327519209,1716148233213,-152.03,0.0001299,2]
[327519211,1716148233223,-152.03,0.0001299,2]
[327519213,1716148233232,-60.01516619,0.0001299,2]
[327519215,1716148233244,-92.01483381,0.0001299,2]
[327519217,1716148233255,-152.03,0.0001299,2]
[327519219,1716148233265,-152.03,0.0001299,2]
[327519221,1716148233275,-152.03,0.0001299,2]
[327519223,1716148233286,-152.03,0.0001299,2]
[327519225,1716148233296,-152.03,0.0001299,2]
[327519227,1716148233305,-152.03,0.0001299,2]
[327519229,1716148233314,-152.03,0.0001299,2]
[327519231,1716148233324,-152.03,0.0001299,2]
[327519232,1716148233334,-152.03,0.0001299,2]
[327519233,1716148233344,-152.03,0.0001299,2]
[327519234,1716148233354,-152.03,0.0001299,2]
[327519235,1716148233364,-152.03,0.0001299,2]
[327519236,1716148233374,-152.03,0.0001299,2]
[327519237,1716148233384,-152.03,0.0001299,2]
[327519238,1716148233394,-152.03,0.0001299,2]
[327519239,1716148233404,-152.03,0.0001299,2]
[327519240,1716148233413,-152.03,0.0001299,2]
[327519241,1716148233423,-152.03,0.0001299,2]
[327519242,1716148233433,-99.58500942,0.0001299,2]
[327519243,1716148233537,-52.44499058,0.0001299,2]
[327519244,1716148233547,-152.03,0.0001299,2]
[327519245,1716148233557,-152.03,0.0001299,2]
[327519246,1716148233567,-152.03,0.0001299,2]
[327519247,1716148233580,-152.03,0.0001299,2]
[327519248,1716148233590,-152.03,0.0001299,2]
[327519249,1716148233599,-152.03,0.0001299,2]
[327519250,1716148233609,-152.03,0.0001299,2]
[327519251,1716148233619,-152.03,0.0001299,2]
[327519252,1716148233628,-152.03,0.0001299,2]
[327519253,1716148233639,-152.03,0.0001299,2]
[327519254,1716148233649,-152.03,0.0001299,2]
[327519255,1716148233658,-152.03,0.0001299,2]
[327519256,1716148233668,-152.03,0.0001299,2]
[327519257,1716148233678,-152.03,0.0001299,2]
[327519258,1716148233687,-152.03,0.0001299,2]
[327519259,1716148233696,-152.03,0.0001299,2]
[327519260,1716148233706,-152.03,0.0001299,2]
[327519261,1716148233715,-152.03,0.0001299,2]
[327519262,1716148233725,-152.03,0.0001299,2]
[327519263,1716148233734,-152.03,0.0001299,2]
[327519264,1716148233743,-152.03,0.0001299,2]
[327519265,1716148233754,-152.03,0.0001299,2]
[327519266,1716148233764,-152.03,0.0001299,2]
[327519267,1716148233773,-152.03,0.0001299,2]
[327519268,1716148233782,-152.03,0.0001299,2]
[327519269,1716148233792,-152.03,0.0001299,2]
[327519270,1716148233801,-152.03,0.0001299,2]
[327519271,1716148233810,-152.03,0.0001299,2]
[327519272,1716148233819,-152.03,0.0001299,2]
[327519273,1716148233828,-152.03,0.0001299,2]
[327519274,1716148233838,-152.03,0.0001299,2]
[327519275,1716148233847,-152.03,0.0001299,2]
[327519276,1716148233856,-152.03,0.0001299,2]
[327519277,1716148233866,-152.03,0.0001299,2]
[327519278,1716148233875,-152.03,0.0001299,2]
[327519279,1716148233884,-152.03,0.0001299,2]
[327519280,1716148233893,-152.03,0.0001299,2]
[327519281,1716148233903,-152.03,0.0001299,2]
[327519282,1716148233913,-152.03,0.0001299,2]
[327519283,1716148233922,-152.03,0.0001299,2]
[327519284,1716148233932,-152.03,0.0001299,2]
[327519285,1716148233942,-152.03,0.0001299,2]
[327519286,1716148233951,-152.03,0.0001299,2]
[327519287,1716148233961,-152.03,0.0001299,2]
[327519288,1716148233972,-11104.66973861,0.00012998,2]
[327519289,1716148233984,-5336.33133191,0.00012998,2]
[327519290,1716148233996,-51634.39738601,0.00012998,2]
[327519291,1716148234008,-3316.7913667,0.00012998,2]
[327519292,1716148234019,-533.965994,0.00012998,2]
[327519293,1716148234031,-1943.69547728,0.00012998,2]
[327519294,1716148234043,-371.38003099,0.00012998,2]
[327519295,1716148234055,-6665.89650835,0.00012998,2]
[327519296,1716148234066,-430.65804442,0.00012998,2]
[327519297,1716148234077,-483.38441344,0.00012998,2]
[327519320,1716148238050,-867.8702897,0.00012998,2]
[327519322,1716148238572,-1127.36532426,0.00012998,2]
[327519323,1716148238593,-1097.789556,0.00012998,2]
[327519325,1716148238608,-775.44461026,0.00012998,2]
[327519326,1716148238621,-581.50765976,0.00012998,2]
[327519327,1716148238634,-7320.10000005,0.00012998,2]
[327519328,1716148238647,-6590.36265851,0.00012998,2]
[327519329,1716148238661,-5111.28122006,0.00012998,2]
[327519330,1716148238673,-790.78038868,0.00012998,2]
[327519331,1716148238686,-1729.55783652,0.00012998,2]
[327519332,1716148238698,-500.0,0.00012998,2]
[327519333,1716148238710,-785.92464769,0.00012998,2]
[327519334,1716148238722,-669.42707453,0.00012998,2]
[327519335,1716148238735,-655.82000289,0.00012998,2]
[327519336,1716148238746,-774.91831638,0.00012998,2]
[327519337,1716148238765,-5243.23166968,0.00012998,2]
[327519338,1716148238777,-5638.59697852,0.00012998,2]
[327519339,1716148238789,-6185.98287592,0.00012998,2]
[327519340,1716148238802,-1654.53650654,0.00012998,2]
[327519341,1716148238815,-6616.58904,0.00012998,2]
[327519342,1716148238827,-1151.7587563,0.00012998,2]
[327519343,1716148238840,-830.53999099,0.00012998,2]
[327519344,1716148238853,-5115.04327528,0.00012998,2]
[327519345,1716148238865,-7247.88125866,0.00012998,2]
[327519346,1716148238891,-7154.86799684,0.00012998,2]
[327519347,1716148238904,-9901.01985224,0.00012998,2]
[327519348,1716148238918,-5085.22599903,0.00012998,2]
[327519349,1716148238931,-7040.3643225,0.00012998,2]
[327519350,1716148238945,-441.23622305,0.00012998,2]
[327519351,1716148238955,-309.452495,0.00012999,2]
[327519352,1716148238965,-151.47148255,0.00012999,2]
[327519353,1716148238975,-2412.2553994,0.00013,2]
[327519354,1716148238987,-9829.1716183,0.00013,2]
[327519355,1716148239000,-444.11719502,0.00013,2]
[327519356,1716148239014,-5468080.89411386,0.00013,2]
[327519357,1716148239028,-24502.57617696,0.00013,2]
[327519358,1716148239042,-9697.534,0.00013,2]
[327519359,1716148239056,-578.941023,0.00013,2]
[327519360,1716148239069,-16169.82675154,0.00013,2]
[327519361,1716148239082,-39813.36937123,0.00013,2]
[327519362,1716148239096,-1665.62150111,0.00013,2]
[327519363,1716148239109,-14263.00662656,0.00013,2]
[327519364,1716148239123,-264046.16368743,0.00013,2]
[327519365,1716148239136,-4920.40179236,0.00013,2]
[327519366,1716148239150,-7214.50036956,0.00013,2]
[327519367,1716148239164,-5115.537408,0.00013,2]
[327519368,1716148239178,-9500.929818,0.00013,2]
[327519387,1716148240083,-347652.70973047,0.00013,2]
[327519388,1716148240338,-185293.51074515,0.00013,2]
[327519389,1716148240354,-813.78799327,0.00013,2]
[327519390,1716148240368,-3245.01667912,0.00013,2]
[327519391,1716148240382,-366.976,0.00013,2]
[327519392,1716148240397,-1198.68,0.00013,2]
[327519393,1716148240412,-857.69234347,0.00013,2]
[327519394,1716148240525,-2108.96340358,0.00013,2]
[327519395,1716148240537,-2230.79767685,0.00013,2]
[327519396,1716148240549,-332.5106785,0.00013,2]
[327519397,1716148240595,-1703.73487036,0.00013,2]
[327519439,1716148243217,-3307.0,0.00013,2]
[327519440,1716148243270,-280.6482,0.00013,2]
[327519441,1716148243282,-415.72892627,0.00013,2]
[327519442,1716148243392,-67053.46151075,0.00013,2]
[327519443,1716148243460,-3284.8065,0.00013,2]
[327519444,1716148243473,-1078.79243425,0.00013,2]
[327519445,1716148243486,-3443.71527214,0.00013,2]
[327519446,1716148243703,-346.99751302,0.00013,2]
[327519455,1716148245946,-409.69074003,0.00012999,2]
[327519456,1716148245956,-4075.0233038,0.00013,2]
[327519457,1716148245969,-137965.26576277,0.00013,2]
[327519458,1716148246029,-254.28999736,0.00013,2]
[327519459,1716148246042,-1653.05,0.00013,2]
[327519460,1716148246103,-1506.5,0.00013,2]
[327519461,1716148246144,-870.74209631,0.00013,2]
[327519462,1716148246156,-4804.74196432,0.00013,2]
[327519463,1716148246177,-113890.81339782,0.00013,2]
[327519466,1716148246365,-196691.34433665,0.00013,2]
[327519467,1716148310237,427.9339,0.00012459,2]
[327519470,1716148480282,804.35457658,0.0001,2]
[327519471,1716148571146,1979.27555,0.00012473,2]
[327519472,1716148641022,156.62,0.00024329,30]
[327519477,1716149059525,4051.50226431,0.000125,2]
[327519478,1716149061116,204.84407215,0.000125,2]
[327519479,1716149065738,155.0,0.000125,2]
[327519480,1716149067435,378.01191713,0.000125,2]
[327519481,1716149079961,266.29978993,0.000125,2]
[327519482,1716149087659,686.19599141,0.000125,2]
[327519483,1716149137605,204.84407215,0.000125,2]
[327519484,1716149165764,157.72484215,0.000125,2]
[327519487,1716149237710,156.62,0.00024329,30]
[327519505,1716149433004,-1380.72337377,0.00012713,2]
[327519506,1716149433015,-1564.91862066,0.00012714,2]
[327519507,1716149433024,-795.48035142,0.0001274,2]
[327519508,1716149433059,-469.83333614,0.0001274,2]
[327519509,1716149433072,-1338.68588387,0.0001274,2]
[327519510,1716149433081,-753.91769,0.0001287,2]
[327519511,1716149433095,-150.0,0.00012899,2]
[327519512,1716149433104,-1056.54642613,0.000129,2]
[327519513,1716149433115,-562.4996314,0.000129,2]
[327519514,1716149433128,-1661.1859856,0.000129,2]
[327519515,1716149433183,-554.58560878,0.000129,2]
[327519516,1716149433194,-22501.63934809,0.000129,2]
[327519517,1716149433204,-311.48760432,0.000129,2]
[327519518,1716149433214,-11825.99505039,0.000129,2]
[327519519,1716149433224,-7309.86354655,0.000129,2]
[327519520,1716149433234,-3432.30470578,0.00012988,2]
[327519521,1716149433243,-804.86940234,0.00012998,2]
[327519522,1716149433253,-10934.65564137,0.00012998,2]
[327519523,1716149433264,-7513.01102661,0.00012998,2]
[327519524,1716149433274,-410.03425881,0.00012998,2]
[327519525,1716149433284,-244.22316064,0.00012998,2]
[327519526,1716149433293,-933.19709551,0.00012998,2]
[327519527,1716149433307,-129.66387073,0.00012998,2]
[327519528,1716149433317,-346.96883945,0.00012998,2]
[327519529,1716149433327,-155.17178027,0.00012998,2]
[327519530,1716149433336,-63.27179295,0.00012998,2]
[327519531,1716149433349,-260.61531392,0.00012998,2]
[327519532,1716149433358,-245.34653032,0.00012998,2]
[327519533,1716149433368,-430.01455209,0.00012998,2]
[327519534,1716149433379,-391.90213867,0.00012998,2]
[327519535,1716149433390,-775.19666386,0.00012998,2]
[327519536,1716149433404,-3305.15185,0.00012998,2]
[327519537,1716149433416,-241.52970489,0.00012998,2]
[327519538,1716149433427,-311.35901852,0.00012998,2]
[327519539,1716149433439,-14.28659576,0.00012998,2]
[327519540,1716149433448,-380.55267703,0.00012998,2]
[327519541,1716149433458,-157.51449999,0.00012998,2]
[327519542,1716149433467,-266.19116045,0.00012998,2]
[327519544,1716149433477,-683.9931957,0.00012998,2]
[327519546,1716149433486,-883.15084084,0.00012998,2]
[327519548,1716149433496,-215.11965782,0.00012998,2]
[327519550,1716149433506,-193.50044004,0.00012998,2]
[327519552,1716149433515,-155.0,0.00012999,2]
[327519554,1716149433524,-1126.49876142,0.00012999,2]
[327519556,1716149433533,-499.99,0.00012999,2]
[327519558,1716149433542,-150.99,0.00012999,2]
[327519560,1716149433553,-1962.94189877,0.00013,2]
[327519628,1716149438221,-237056.68943018,0.00013,2]
[327519630,1716149438233,-330.375,0.00013,2]
[327519631,1716149438244,-527.14081138,0.00013,2]
[327519632,1716149438281,-13223.97072,0.00013,2]
[327519633,1716149438292,-1098.58319523,0.00013,2]
[327519634,1716149438338,-648.70118642,0.00013,2]
[327519635,1716149438349,-272.32466048,0.00013,2]
[327519636,1716149438360,-493.68166636,0.00013,2]
[327519637,1716149438373,-435.6818782,0.00013,2]
[327519638,1716149438385,-472.85918862,0.00013,2]
[327519639,1716149438396,-596.83460369,0.00013,2]
[327519640,1716149438407,-39725.58406827,0.00013,2]
[327519641,1716149438418,-1486.18,0.00013,2]
[327519642,1716149438430,-15847.10677805,0.00013,2]
[327519643,1716149438517,-324.494342,0.00013,2]
[327519644,1716149438528,-1844.76519213,0.00013,2]
[327519645,1716149438577,-660.0,0.00013,2]
[327519692,1716149440385,-382.59289301,0.00013,2]
[327519693,1716149440496,-65964.64431528,0.00013,2]
[327519694,1716149440662,-46027.15159335,0.00013,2]
[327519695,1716149440721,-6601.00000001,0.00013,2]
[327519696,1716149440734,-1843.97000003,0.00013,2]
[327519697,1716149440745,-3306.204,0.00013,2]
[327519698,1716149440781,-714.89773218,0.00013,2]
[327519945,1716149443351,-176.56446522,0.00012999,2]
[327519946,1716149443361,-485.67737478,0.00013,2]
[327519953,1716149443465,-621.03847781,0.00013,2]
[327519954,1716149443477,-1213.39210882,0.00013,2]
[327519955,1716149443488,-365.0,0.00013,2]
[327519956,1716149443636,-19819.8,0.00013,2]
[327519957,1716149443748,-1021.71644286,0.00013,2]
[327519958,1716149443759,-831.02421482,0.00013,2]
[327519959,1716149443771,-3301.75,0.00013,2]
[327519969,1716149446202,-159.98075539,0.00012999,2]
[327519970,1716149446211,-1144.24023104,0.00013,2]
[327519971,1716149446222,-66096.71130764,0.00013,2]
[327519972,1716149446259,-6726.47935296,0.00013,2]
[327519973,1716149446375,-939265.46954626,0.00013,2]
[327519974,1716149446434,-6602.0,0.00013,2]
[327519975,1716149446445,-33202.75226753,0.00013,2]
[327519976,1716149526628,155.79,0.0001153,2]
[327519977,1716149673091,11687.10996256,0.00012497,2]
[327519978,1716149709604,156.62,0.00024329,30]
[327519979,1716149763149,164.06481566,0.00012492,2]
[327519980,1716149807954,330.37694414,0.0001249,2]
[327519981,1716149835697,273.94,0.00010893,2]
[327519982,1716149889800,192.79,0.00010074,2]
[327519983,1716149942647,969.56574455,0.0001,5]
[327519984,1716150015287,2155.67,0.00012351,2]
[327519985,1716150020182,281.81474394,0.00012499,2]
[327519986,1716150031414,1360.19065266,0.0001,2]
[327519987,1716150038777,250.0,0.00012369,2]
[327519988,1716150047421,1359.78777394,0.0001,2]
[327519989,1716150048145,1391.45711132,0.00012499,2]
[327519990,1716150049381,155.79,9.959e-05,2]
[327519991,1716150061173,468.75,0.00012449,2]
[327519992,1716150061777,150.0,0.000125,2]
[327519993,1716150061836,150.0,0.000125,2]
[327519994,1716150061892,150.0,0.000125,2]
[327519995,1716150070033,409.70150583,0.00012499,2]
[327519996,1716150077430,234.22233037,0.00012499,2]
[327519997,1716150084216,217.3597043,0.00012499,2]
[327519998,1716150087794,82399.69237158,9.959e-05,2]
[327519999,1716150088613,1486.18,0.00012484,3]
[327520000,1716150096902,326.70695678,0.00012499,2]
[327520001,1716150099449,250.5802228,0.00011696,2]
[327520002,1716150102145,155.0,0.00012499,2]
[327520003,1716150102724,281.81474394,0.00012499,2]
[327520004,1716150124666,1391.45711132,0.00012499,2]
[327520005,1716150139060,346.08357273,0.00012499,2]
[327520006,1716150141462,1359.9892133,0.00012499,2]
[327520007,1716150145854,37222.04446705,0.00012499,2]
[327520008,1716150153601,1392.73,0.00012433,2]
[327520009,1716150154736,217.3597043,0.00012499,2]
[327520010,1716150156826,200.0,0.00012443,2]
[327520011,1716150165321,20217.3428358,0.00012499,2]
[327520012,1716150174582,560.82369156,0.00012499,2]
[327520013,1716150174612,155.0,0.00012499,2]
[327520014,1716150187324,20210.52137748,0.00012499,2]
[327520015,1716150189417,326.70695678,0.00012499,2]
[327520016,1716150190521,560.63299884,0.00012499,2]
[327520017,1716150191447,1380.72337377,0.00012499,2]
[327520018,1716150196227,156.62,0.00024329,30]
[327520019,1716150197162,1391.45711132,0.00012499,2]
[327520020,1716150275672,1391.45711132,0.00012499,2]
[327520021,1716150300075,168.85,0.00012345,2]
[327520022,1716150337641,271.9,0.00010534,2]
[327520023,1716150352202,1391.45711132,0.00012499,2]
[327520024,1716150372649,250.0,0.00012302,2]
[327520025,1716150383113,150.0,0.0001238,2]
[327520026,1716150395130,500.0,0.0001248,2]
[327520027,1716150415353,150.53,0.00010144,2]
[327520028,1716150427361,1971.83382113,9.285e-05,2]
[327520029,1716150442552,155.23469938,0.00011696,2]
[327520030,1716150448277,23900.0,0.00012405,2]
[327520031,1716150448935,1000.0,0.00012405,2]
[327520032,1716150467760,1436.78,0.00012455,2]
[327520033,1716150488355,-1297.77550926,0.000125,2]
[327520034,1716150488379,-150.0,0.00012502,2]
[327520035,1716150488401,-4042.22449074,0.00012503,2]
[327520036,1716150503169,159.26249912,0.00012346,2]
[327520037,1716150508514,155.0,0.00011696,2]
[327520038,1716150539498,436.740793,0.0001244,2]
[327520039,1716150539903,168.79,0.00012431,2]
[327520040,1716150550969,-19630.90671559,0.00012502,2]
[327520041,1716150550993,-170369.09328441,0.00012503,2]
[327520042,1716150565378,250.0,0.00012455,2]
[327520045,1716150619876,20217.3428358,0.00012455,2]
[327520046,1716150624409,7517.87605167,0.00012455,2]
[327520047,1716150625670,970.39531171,0.00012455,2]
[327520048,1716150625984,1360.19065266,0.00012455,2]
[327520049,1716150628358,283496.44785529,0.00012455,2]
[327520056,1716150632852,-8302.32106482,0.00012455,2]
[327520057,1716150632915,-154971.34308946,0.00012455,2]
[327520058,1716150632927,-3588.27117866,0.00012455,2]
[327520059,1716150632978,-711.72882134,0.00012455,2]
[327520060,1716150632990,-2081.55504892,0.00012455,2]
[327520061,1716150633002,-908.1339481,0.00012455,2]
[327520062,1716150633040,-4400.0,0.00012455,2]
[327520063,1716150633051,-3445.55880682,0.00012455,2]
[327520064,1716150633063,-447.78112382,0.00012455,2]
[327520065,1716150633075,-316.66262,0.00012455,2]
[327520066,1716150633087,-469.3608413,0.00012455,2]
[327520145,1716150637562,-699.93338983,0.00012455,2]
[327520146,1716150637627,-3323.4336,0.00012455,2]
[327520147,1716150637686,-3304.7964,0.00012455,2]
[327520148,1716150637750,-3385.96953395,0.00012455,2]
[327520149,1716150637762,-3730.36434643,0.00012455,2]
[327520150,1716150637774,-8449.0,0.00012455,2]
[327520151,1716150637787,-5731.89280292,0.00012455,2]
[327520160,1716150638872,-55780.26734069,0.00012455,2]
[327520161,1716150638882,-20217.3428358,0.00012455,2]
[327520162,1716150638892,-155.0,0.00012503,2]
[327520163,1716150638901,-560.19747156,0.00012503,2]
[327520164,1716150638910,-292.79,0.0001253,2]
[327520165,1716150638921,-179.97,0.00012552,2]
[327520166,1716150638930,-1577.17,0.00012554,2]
[327520167,1716150638940,-157.86,0.00012647,2]
[327520168,1716150638949,-150.27,0.0001266,2]
[327520169,1716150638959,-1561.74227986,0.00012716,2]
[327520170,1716150638969,-271.9,0.00012798,2]
[327520171,1716150638979,-499.99,0.00012866,2]
[327520172,1716150638988,-157.86,0.00012866,2]
[327520173,1716150638998,-500.0,0.0001287,2]
[327520174,1716150639008,-1930.4848,0.00012898,2]
[327520175,1716150639018,-1000.0,0.000129,2]
[327520176,1716150639027,-2125.98,0.000129,2]
[327520177,1716150639037,-1363.11563008,0.000129,2]
[327520178,1716150639047,-1363.11563006,0.000129,2]
[327520179,1716150639057,-1363.11563006,0.000129,2]
[327520180,1716150639068,-1363.11563006,0.000129,2]
[327520181,1716150639078,-1363.11563006,0.000129,2]
[327520182,1716150639089,-1363.11563006,0.000129,2]
[327520183,1716150639099,-1363.11563006,0.000129,2]
[327520184,1716150639109,-1363.11563006,0.000129,2]
[327520185,1716150639118,-322.22763985,0.000129,2]
[327520186,1716150639128,-190.35446174,0.000129,2]
[327520187,1716150639138,-408.81565659,0.00012996,2]
[327520188,1716150639148,-157.673455,0.00012996,2]
[327520189,1716150639159,-217.6868509,0.00012996,2]
[327520190,1716150639168,-199.35754854,0.00012996,2]
[327520191,1716150639178,-207.51951624,0.00012996,2]
[327520192,1716150639188,-894.45284741,0.00012996,2]
[327520193,1716150639198,-282.44814109,0.00012997,2]
[327520194,1716150639208,-3361.84781159,0.00012997,2]
[327520195,1716150639218,-170.41326898,0.00012998,2]
[327520196,1716150639227,-411.11408338,0.00012998,2]
[327520197,1716150639237,-1364.74024267,0.00012998,2]
[327520198,1716150639247,-817.82411991,0.00012998,2]
[327520199,1716150639256,-882.98249872,0.00012998,2]
[327520200,1716150639266,-41765.69710996,0.00012998,2]
[327520201,1716150639283,-52331.51853463,0.00012998,2]
[327520202,1716150639311,-6743.26,0.00012998,2]
[327520203,1716150639323,-5897.93599999,0.00012998,2]
[327520207,1716150639909,-49659.37415034,0.00012998,2]
[327520208,1716150639922,-18819.32715519,0.00012998,2]
[327520209,1716150639934,-6041.99736684,0.00012998,2]
[327520210,1716150639947,-432743.69243742,0.00012998,2]
[327520211,1716150639956,-1063.44051398,0.00012999,2]
[327520212,1716150639966,-34124.27864192,0.00012999,2]
[327520213,1716150640013,-394.18780526,0.00012999,2]
[327520214,1716150640026,-34815.62516715,0.00012999,2]
[327520215,1716150640037,-1329.831953,0.00012999,3]
[327520216,1716150640048,-1329.831953,0.00012999,3]
[327520217,1716150640058,-1329.83195301,0.00012999,3]
[327520218,1716150640068,-96548.88903486,0.00013,2]
[327520219,1716150640084,-1665.6441735,0.00013,2]
[327520220,1716150640097,-368.5639343,0.00013,2]